fUST/lending_fUST_20251121
["ID","MTS","AMOUNT","RATE_DAILY","PERIOD"]
[394543858,1763680422251,151.0,0.00038519,50]
[394543859,1763680422312,151.0,0.00038519,50]
[394543860,1763680422537,151.0,0.00038519,50]
[394543861,1763680422601,151.0,0.00038519,50]
[394543862,1763680422821,151.0,0.00038519,50]
[394543863,1763680422877,151.0,0.00038519,50]
[394543864,1763680423123,151.0,0.00038519,50]
[394543865,1763680423181,188.0,0.00038519,50]
[394543866,1763680423423,151.0,0.00038519,50]
[394543867,1763680423723,151.0,0.00038519,50]
[394543868,1763680424007,151.0,0.00038519,50]
[394543869,1763680424304,151.0,0.00038519,50]
[394543870,1763680424596,151.0,0.00038519,50]
[394543871,1763680424890,151.0,0.00038519,50]
[394543872,1763680425174,282.492412,0.00038519,50]
[394543873,1763680468990,151.0,0.00038519,50]
[394543874,1763680469273,151.0,0.00038519,50]
[394543875,1763680469562,151.0,0.00038519,50]
[394543876,1763680469846,151.0,0.00038519,50]
[394543877,1763680470247,151.0,0.00038519,50]
[394543878,1763680470451,151.0,0.00038519,50]
[394543879,1763680470760,187.442322,0.00038519,50]
[394543880,1763680479376,150.0,0.00014293,30]
[394543881,1763680488847,151.0,0.00038519,50]
[394543882,1763680489129,151.0,0.00038519,50]
[394543883,1763680489450,151.0,0.00038519,50]
[394543884,1763680489782,151.0,0.00038519,50]
[394543885,1763680490063,151.0,0.00038519,50]
[394543886,1763680533769,151.0,0.00038519,50]
[394543887,1763680534063,151.0,0.00038519,50]
[394543888,1763680534785,151.0,0.00038519,50]
[394543889,1763680534883,151.0,0.00038519,50]
[394543890,1763680534968,151.0,0.00038519,50]
[394543891,1763680535241,151.0,0.00038519,50]
[394543892,1763680535300,151.0,0.00038519,50]
[394543893,1763680535537,151.0,0.00038519,50]
[394543894,1763680535597,151.0,0.00038519,50]
[394543895,1763680535877,151.0,0.00038519,50]
[394543896,1763680535937,151.0,0.00038519,50]
[394543897,1763680536179,151.0,0.00038519,50]
[394543898,1763680536237,151.0,0.00038519,50]
[394543899,1763680536470,151.0,0.00038519,50]
[394543900,1763680536532,151.0,0.00038519,50]
[394543901,1763680536753,151.0,0.00038519,50]
[394543902,1763680537036,207.963818,0.00038519,50]
[394543903,1763680537125,151.0,0.00038519,50]
[394543904,1763680537383,151.0,0.00038519,50]
[394543905,1763680537682,151.0,0.00038519,50]
[394543906,1763680537987,151.0,0.00038519,50]
[394543907,1763680538271,151.0,0.00038519,50]
[394543908,1763680538570,151.0,0.00038519,50]
[394543909,1763680538864,151.0,0.00038519,50]
[394543910,1763680539159,255.047485,0.00038519,50]
[394543913,1763680588525,151.502127,0.0003849,50]
[394543915,1763680596893,151.0,0.0003849,50]
[394543916,1763680597017,151.0,0.0003849,50]
[394543917,1763680597321,151.0,0.0003849,50]
[394543918,1763680597418,151.0,0.0003849,50]
[394543919,1763680597505,190.67157,0.0003849,50]
[394543920,1763680607781,151.0,0.0003849,50]
[394543921,1763680608077,151.0,0.0003849,50]
[394543922,1763680608434,151.0,0.0003849,50]
[394543923,1763680608727,151.0,0.0003849,50]
[394543924,1763680609066,151.0,0.0003849,50]
[394543925,1763680609356,151.0,0.0003849,50]
[394543926,1763680609666,194.799944,0.0003849,50]
[394543927,1763680647559,151.0,0.0003849,50]
[394543928,1763680647990,151.0,0.0003849,50]
[394543929,1763680648551,151.0,0.0003849,50]
[394543931,1763680747380,1000.0,0.0003849,120]
[394543932,1763680754645,1000.0,0.0003849,120]
[394543933,1763680756983,150.0,0.00014791,30]
[394543934,1763680771266,500.0,0.0003849,120]
[394543935,1763680814670,176.701032,0.0003849,50]
[394543936,1763680825579,151.0,0.0003849,50]
[394543937,1763680825682,151.0,0.0003849,50]
[394543938,1763680825975,151.0,0.0003849,50]
[394543939,1763680826267,151.0,0.0003849,50]
[394543940,1763680826577,151.0,0.0003849,50]
[394543941,1763680826898,151.0,0.0003849,50]
[394543942,1763680827194,151.0,0.0003849,50]
[394543943,1763680827494,151.0,0.0003849,50]
[394543944,1763680827771,151.0,0.0003849,50]
[394543945,1763680828067,298.178207,0.0003849,50]
[394543947,1763680954277,847.0821475,0.00032876,120]
[394543950,1763681115361,198.2,0.00032877,120]
[394543952,1763681146598,300.0,0.0003849,120]
[394543956,1763681192799,166.96,0.00038492,20]
[394543957,1763681222295,500.0,0.00038492,20]
[394543958,1763681235116,-283.57107001,5.865e-05,2]
[394543959,1763681235138,-300.0,5.874e-05,2]
[394543960,1763681235158,-300.0,5.875e-05,2]
[394543961,1763681235292,-300.0,5.875e-05,2]
[394543962,1763681235314,-1200.0,5.875e-05,2]
[394543963,1763681235334,-322.92435101,5.875e-05,2]
[394543964,1763681235363,-500.0,5.875e-05,2]
[394543965,1763681235391,-500.0,5.875e-05,2]
[394543966,1763681235418,-500.0,5.875e-05,2]
[394543967,1763681235446,-500.0,5.875e-05,2]
[394543968,1763681235473,-500.0,5.875e-05,2]
[394543969,1763681235500,-500.0,5.875e-05,2]
[394543970,1763681235527,-219.35249611,5.875e-05,2]
[394543971,1763681235554,-500.0,5.875e-05,2]
[394543972,1763681235581,-500.0,5.875e-05,2]
[394543973,1763681235606,-500.0,5.875e-05,2]
[394543974,1763681235634,-500.0,5.875e-05,2]
[394543975,1763681235661,-500.0,5.875e-05,2]
[394543976,1763681235687,-500.0,5.875e-05,2]
[394543977,1763681235708,-500.0,5.875e-05,2]
[394543978,1763681235730,-500.0,5.875e-05,2]
[394543979,1763681235751,-500.0,5.875e-05,2]
[394543980,1763681235771,-500.0,5.875e-05,2]
[394543981,1763681235792,-411.89050189,5.875e-05,2]
[394543982,1763681235821,-500.0,5.875e-05,2]
[394543983,1763681235843,-300.0,5.883e-05,2]
[394543984,1763681235868,-300.0,5.883e-05,2]
[394543985,1763681235891,-300.0,5.883e-05,2]
[394543986,1763681235915,-300.0,5.883e-05,2]
[394543987,1763681235938,-300.0,5.883e-05,2]
[394543988,1763681235964,-300.0,5.883e-05,2]
[394543989,1763681235987,-161.51413884,5.883e-05,2]
[394543990,1763681245264,3051.77219454,0.00038492,120]
[394543991,1763681246162,1721.20906459,0.00038492,120]
[394543992,1763681261719,1286.9305684,0.00038492,60]
[394543993,1763681263045,1510.14811506,0.00038492,120]
[394543995,1763681272675,3349.78560854,0.00038492,120]
[394543997,1763681275400,2810.96661048,0.00038492,60]
[394544001,1763681302563,1406.17,0.00032877,120]
[394544002,1763681303419,1970.34703165,0.00032,120]
[394544003,1763681303914,2548.12708566,0.00038492,60]
[394544005,1763681305352,794.26819193,0.0002,120]
[394544006,1763681307266,4295.169826,0.00030137,120]
[394544007,1763681307739,254.06149371,0.00025,120]
[394544008,1763681309854,732.52337681,0.00032,120]
[394544010,1763681310652,1624.65543386,0.00038492,120]
[394544011,1763681311037,2753.56711932,0.00038492,120]
[394544012,1763681311930,3494.29313923,0.00038492,120]
[394544013,1763681312568,4236.53204892,0.00032,120]
[394544014,1763681313471,3111.85983585,0.0003,120]
[394544016,1763681314328,1246.11321067,0.00038492,60]
[394544017,1763681315379,235.1889313,0.000295,120]
[394544019,1763681316538,158.02598281,0.0003,120]
[394544020,1763681316640,2797.84009692,0.00038492,120]
[394544022,1763681317488,1068.0,0.0003,120]
[394544023,1763681317901,7988.18744427,0.0003287,120]
[394544024,1763681320703,6152.82723691,0.00038492,30]
[394544025,1763681320766,9190.0,0.00038492,120]
[394544026,1763681321253,2010.46167772,0.00038492,20]
[394544027,1763681321505,36792.37863057,0.00038492,120]
[394544028,1763681321561,2156.56598882,0.00038492,30]
[394544029,1763681321717,1005.25456614,0.00038492,120]
[394544030,1763681347309,430.95257203,0.0003287,120]
[394544074,1763681432658,-283.55499108,5.879e-05,2]
[394544077,1763681432670,-986.75689498,5.882e-05,2]
[394544096,1763681433992,-29.79213807,5.882e-05,2]
[394544100,1763681438722,-500.0,5.88e-05,2]
[394544101,1763681438731,-500.0,5.88e-05,2]
[394544102,1763681438741,-500.0,5.88e-05,2]
[394544103,1763681438750,-500.0,5.88e-05,2]
[394544104,1763681438760,-500.0,5.88e-05,2]
[394544105,1763681438770,-500.0,5.88e-05,2]
[394544106,1763681438779,-491.18905019,5.88e-05,2]
[394544107,1763681438788,-500.0,5.88e-05,2]
[394544108,1763681438798,-500.0,5.88e-05,2]
[394544109,1763681438807,-500.0,5.88e-05,2]
[394544110,1763681438816,-500.0,5.88e-05,2]
[394544111,1763681438826,-256.35124299,5.88e-05,2]
[394544112,1763681438836,-183.45096695,5.882e-05,2]
[394544113,1763681438846,-138.48586116,5.883e-05,2]
[394544114,1763681438855,-300.0,5.883e-05,2]
[394544115,1763681438865,-300.0,5.883e-05,2]
[394544116,1763681438876,-300.0,5.883e-05,2]
[394544117,1763681438885,-300.0,5.883e-05,2]
[394544118,1763681438895,-300.0,5.883e-05,2]
[394544119,1763681438904,-300.0,5.883e-05,2]
[394544120,1763681438914,-300.0,5.883e-05,2]
[394544121,1763681438924,-300.0,5.883e-05,2]
[394544122,1763681438933,-823.04768504,7.66e-05,2]
[394544123,1763681438943,-334.59488947,7.879e-05,2]
[394544124,1763681438952,-506.10959622,8.974e-05,2]
[394544125,1763681438963,-500.0,8.976e-05,2]
[394544126,1763681438972,-500.0,8.976e-05,2]
[394544127,1763681438981,-500.0,8.976e-05,2]
[394544128,1763681438991,-500.0,8.976e-05,2]
[394544129,1763681439000,-159.42,9.297e-05,2]
[394544130,1763681439010,-1000.0,9.524e-05,2]
[394544131,1763681439020,-1000.0,9.524e-05,2]
[394544132,1763681439034,-1000.0,9.524e-05,2]
[394544133,1763681439044,-385.63478786,9.879e-05,2]
[394544134,1763681439053,-1500.0,0.00010072,2]
[394544135,1763681439063,-1500.0,0.00010072,2]
[394544136,1763681439073,-785.1827347,0.00010072,2]
[394544137,1763681439083,-2000.0,0.0001062,2]
[394544138,1763681439094,-2000.0,0.0001062,2]
[394544139,1763681439104,-500.0,0.00010653,2]
[394544140,1763681439115,-190.7175016,0.00010653,2]
[394544141,1763681439126,-18515.12165215,0.00010654,2]
[394544142,1763681439135,-999.0,0.00010959,2]
[394544143,1763681439146,-531.98103253,0.00010959,2]
[394544144,1763681439156,-531.98103253,0.00010959,2]
[394544145,1763681439166,-531.98103253,0.00010959,2]
[394544146,1763681439176,-531.98103253,0.00010959,2]
[394544147,1763681439187,-531.98103253,0.00010959,2]
[394544148,1763681439197,-531.98103253,0.00010959,2]
[394544149,1763681439207,-531.98103253,0.00010959,2]
[394544150,1763681439216,-531.98103253,0.00010959,2]
[394544151,1763681439226,-531.98103253,0.00010959,2]
[394544152,1763681439236,-531.98103253,0.00010959,2]
[394544153,1763681439246,-531.98103253,0.00010959,2]
[394544154,1763681439255,-531.98103253,0.00010959,2]
[394544155,1763681439266,-531.98103253,0.00010959,2]
[394544156,1763681439276,-1343.73174178,0.00010959,2]
[394544157,1763681439286,-1343.73174178,0.00010959,2]
[394544158,1763681439296,-1343.73174178,0.00010959,2]
[394544159,1763681439306,-1343.73174178,0.00010959,2]
[394544160,1763681439316,-1343.73174178,0.00010959,2]
[394544161,1763681439325,-1343.73174178,0.00010959,2]
[394544162,1763681439335,-1343.73174178,0.00010959,2]
[394544163,1763681439344,-1343.73174178,0.00010959,2]
[394544164,1763681439354,-1343.73174178,0.00010959,2]
[394544165,1763681439363,-1502.73999789,0.00010959,2]
[394544166,1763681439372,-1502.73999789,0.00010959,2]
[394544167,1763681439383,-1502.73999789,0.00010959,2]
[394544168,1763681439392,-1502.73999789,0.00010959,2]
[394544169,1763681439402,-784.96541301,0.00011168,2]
[394544170,1763681439412,-1403.65397714,0.00011168,2]
[394544171,1763681439421,-600.0,0.00011177,2]
[394544172,1763681439431,-2151.0,0.00011185,2]
[394544173,1763681439441,-630.0,0.00011185,2]
[394544174,1763681439450,-989.0,0.00011185,2]
[394544175,1763681439459,-371.69554008,0.00011225,2]
[394544176,1763681439469,-3286.28159789,0.00011425,2]
[394544177,1763681439478,-786.46083513,0.00011535,2]
[394544178,1763681439488,-669.05197214,0.00011682,2]
[394544179,1763681439497,-436.67468626,0.00011879,2]
[394544180,1763681439507,-766.35256577,0.00011917,2]
[394544181,1763681439517,-965.45821998,0.00012281,2]
[394544182,1763681439527,-720.0,0.00012295,2]
[394544183,1763681439536,-160.0,0.00012437,2]
[394544184,1763681439546,-353.0361107,0.00012439,2]
[394544185,1763681439555,-5075.36168623,0.000129,2]
[394544186,1763681439566,-864.0,0.00013524,2]
[394544187,1763681439579,-76083.88571385,0.00013549,2]
[394544188,1763681439595,-2277.78,0.00013549,2]
[394544191,1763681440734,-366.39040813,0.00013549,2]
[394544207,1763681447048,-160.0,0.00012437,2]
[394544208,1763681447059,-245.67952158,0.00013549,2]
[394544210,1763681485674,205.84775242,0.00038493,120]
[394544212,1763681711420,722.87040842,0.000328,120]
[394544213,1763681719953,250.0,0.0003848,120]
[394544214,1763681720591,250.0,0.0003848,120]
[394544215,1763681772599,158.39,0.00014841,30]
[394544216,1763681806808,166.385411,9.511e-05,120]
[394544218,1763681830264,1027.77,0.0003848,120]
[394544219,1763681882987,500.0,0.0003848,20]
[394544220,1763682002197,500.0,0.00038481,20]
[394544221,1763682010692,20000.0,0.00038481,120]
[394544222,1763682011322,20740.0,0.00038481,120]
[394544223,1763682012045,21507.38,0.00038481,120]
[394544224,1763682012710,22303.15306,0.00038481,120]
[394544225,1763682122219,500.0,0.00038481,20]
[394544226,1763682242448,500.0,0.00038481,20]
[394544228,1763682286939,8002.0,0.00038481,20]
[394544229,1763682307545,250.0,0.00038481,120]
[394544230,1763682308171,250.0,0.00038481,120]
[394544231,1763682308901,250.0,0.00038481,120]
[394544232,1763682309902,250.0,0.00038481,120]
[394544233,1763682310261,250.0,0.00038481,120]
[394544234,1763682310487,2500.0,0.00038481,120]
[394544235,1763682311125,2592.5,0.00038481,120]
[394544236,1763682311190,250.0,0.00038481,120]
[394544237,1763682311711,250.0,0.00038481,120]
[394544238,1763682311779,250.0,0.00038481,120]
[394544239,1763682311841,2688.4225,0.00038481,120]
[394544240,1763682312323,250.0,0.00038481,120]
[394544241,1763682312451,2787.8941325,0.00038481,120]
[394544242,1763682312511,250.0,0.00038481,120]
[394544243,1763682312950,250.0,0.00038481,120]
[394544244,1763682313015,18462.46694,0.00038481,120]
[394544245,1763682313073,2891.0462154,0.00038481,120]
[394544246,1763682313633,250.0,0.00038481,120]
[394544247,1763682314309,250.0,0.00038481,120]
[394544248,1763682314976,250.0,0.00038481,120]
[394544249,1763682315609,250.0,0.00038481,120]
[394544250,1763682316233,250.0,0.00038481,120]
[394544251,1763682316848,250.0,0.00038481,120]
[394544252,1763682317490,250.0,0.00038481,120]
[394544253,1763682318114,250.0,0.00038481,120]
[394544254,1763682321714,209.40437684,0.00038481,120]
[394544255,1763682362783,2963.0,0.00038481,20]
[394544256,1763682401133,-166.385411,9.511e-05,2]
[394544257,1763682401156,-56.64282401,9.644e-05,2]
[394544258,1763682427085,-198.10297997,9.644e-05,2]
[394544259,1763682427107,-166.36121836,0.00010042,2]
[394544260,1763682427129,-166.36121832,0.00010131,2]
[394544261,1763682427153,-300.0,0.00010136,2]
[394544262,1763682427177,-591.13761653,0.00010137,2]
[394544263,1763682427199,-500.0,0.00010137,2]
[394544264,1763682427226,-500.0,0.00010137,2]
[394544265,1763682427250,-500.0,0.00010137,2]
[394544266,1763682427273,-500.0,0.00010137,2]
[394544267,1763682427298,-500.0,0.00010137,2]
[394544268,1763682427318,-320.19853049,0.00010137,2]
[394544269,1763682427337,-389.45349603,0.00010137,2]
[394544270,1763682427364,-500.0,0.00010137,2]
[394544271,1763682427394,-500.0,0.00010137,2]
[394544272,1763682427421,-500.0,0.00010137,2]
[394544273,1763682427448,-500.0,0.00010137,2]
[394544274,1763682427470,-500.0,0.00010137,2]
[394544275,1763682427497,-500.0,0.00010137,2]
[394544276,1763682427520,-500.0,0.00010137,2]
[394544277,1763682427548,-500.0,0.00010137,2]
[394544278,1763682427578,-500.0,0.00010137,2]
[394544279,1763682427605,-500.0,0.00010137,2]
[394544280,1763682427632,-500.0,0.00010137,2]
[394544281,1763682427655,-500.0,0.00010137,2]
[394544282,1763682427679,-500.0,0.00010137,2]
[394544283,1763682427827,-500.0,0.00010137,2]
[394544284,1763682427853,-500.0,0.00010137,2]
[394544285,1763682427881,-366.17889052,0.00010137,2]
[394544286,1763682501720,2997.115974,0.00038481,20]
[394544287,1763682541308,157.53,0.00012381,30]
[394544288,1763682542181,315.05,0.00012683,30]
[394544289,1763682542622,472.58,0.00012985,30]
[394544290,1763682543034,630.11,0.00013287,30]
[394544291,1763682543453,787.63,0.00013589,30]
[394544292,1763682543846,945.16,0.00013891,30]
[394544293,1763682544325,1102.69,0.00014193,30]
[394544294,1763682544675,1260.21,0.00014495,30]
[394544295,1763682545076,1417.74,0.00014797,30]
[394544296,1763682545483,1575.27,0.00015099,30]
[394544298,1763682606518,407.97667805,0.00038481,120]
[394544299,1763682618957,150.0,0.00014137,30]
[394544300,1763682619371,220.54,0.00014482,30]
[394544301,1763682619813,330.81,0.00014827,30]
[394544345,1763682631888,-300.0,0.00010037,2]
[394544347,1763682631897,-372.1,0.00010037,2]
[394544383,1763682637769,-500.0,0.00010037,2]
[394544384,1763682637779,-500.0,0.00010037,2]
[394544385,1763682637789,-532.01985305,0.00010037,2]
[394544386,1763682637799,-500.0,0.00010037,2]
[394544387,1763682637809,-450.0,0.00010037,2]
[394544388,1763682637819,-500.0,0.00010037,2]
[394544389,1763682637829,-500.0,0.00010037,2]
[394544390,1763682637841,-500.0,0.00010037,2]
[394544391,1763682637850,-500.0,0.00010037,2]
[394544392,1763682637860,-500.0,0.00010037,2]
[394544393,1763682637870,-500.0,0.00010037,2]
[394544394,1763682637879,-500.0,0.00010037,2]
[394544395,1763682637889,-500.0,0.00010037,2]
[394544396,1763682637899,-500.0,0.00010037,2]
[394544397,1763682637908,-500.0,0.00010037,2]
[394544398,1763682637918,-500.0,0.00010037,2]
[394544399,1763682637928,-827.9,0.00010037,2]
[394544400,1763682637938,-249.6508879,0.00010037,2]
[394544401,1763682637948,-413.79633157,0.00010038,2]
[394544402,1763682637957,-221.47,0.00010038,2]
[394544403,1763682637967,-69982.23239345,0.00010039,2]
[394544404,1763682638000,-448024.60885922,0.00010039,2]
[394544405,1763682638012,-340709.41180622,0.00010039,2]
[394544406,1763682638023,-21785.39849763,0.00010039,2]
[394544407,1763682638034,-9498.34844348,0.00010039,2]
[394544408,1763682638044,-1200.0,0.00010136,2]
[394544409,1763682638054,-166.36121832,0.0001022,2]
[394544410,1763682638064,-548.34403032,0.00010243,2]
[394544411,1763682638074,-206.59986675,0.00010243,2]
[394544412,1763682638084,-219.86707349,0.00010243,2]
[394544413,1763682638094,-166.36121832,0.00010309,2]
[394544414,1763682638104,-166.36121832,0.00010398,2]
[394544415,1763682638114,-166.36121832,0.00010487,2]
[394544416,1763682638124,-514.34314443,0.00010548,2]
[394544417,1763682638133,-496.947,0.00010554,2]
[394544418,1763682638143,-500.0,0.00010573,2]
[394544419,1763682638154,-500.0,0.00010573,2]
[394544420,1763682638163,-427.09202475,0.00010573,2]
[394544421,1763682638173,-500.0,0.00010573,2]
[394544422,1763682638183,-166.36121832,0.00010576,2]
[394544423,1763682638193,-166.36121832,0.00010665,2]
[394544424,1763682638202,-300.0,0.00010765,2]
[394544425,1763682638212,-300.0,0.00010765,2]
[394544426,1763682638221,-300.0,0.00010765,2]
[394544427,1763682638231,-300.0,0.00010765,2]
[394544428,1763682638241,-300.0,0.00010765,2]
[394544429,1763682638250,-300.0,0.00010765,2]
[394544430,1763682638260,-300.0,0.00010765,2]
[394544431,1763682638269,-300.0,0.00010765,2]
[394544432,1763682638279,-300.0,0.00010765,2]
[394544433,1763682638289,-300.0,0.00010765,2]
[394544434,1763682638299,-300.0,0.00010765,2]
[394544435,1763682638309,-300.0,0.00010765,2]
[394544436,1763682638318,-300.0,0.00010765,2]
[394544437,1763682638328,-300.0,0.00010765,2]
[394544438,1763682638339,-300.0,0.00010765,2]
[394544439,1763682638447,-600.0,0.00010765,2]
[394544440,1763682638460,-500.0,0.00010847,2]
[394544441,1763682638470,-546.01938188,0.00010959,2]
[394544442,1763682638480,-546.01938188,0.00010959,2]
[394544443,1763682638491,-546.01938188,0.00010959,2]
[394544444,1763682638500,-546.01938188,0.00010959,2]
[394544445,1763682638510,-546.01938188,0.00010959,2]
[394544446,1763682638519,-546.01938188,0.00010959,2]
[394544447,1763682638531,-546.01938188,0.00010959,2]
[394544448,1763682638541,-546.01938188,0.00010959,2]
[394544449,1763682638550,-546.01938188,0.00010959,2]
[394544450,1763682638559,-546.01938188,0.00010959,2]
[394544451,1763682638573,-546.01938188,0.00010959,2]
[394544452,1763682638584,-546.01938188,0.00010959,2]
[394544453,1763682638594,-546.01938188,0.00010959,2]
[394544454,1763682638604,-546.01938188,0.00010959,2]
[394544455,1763682638614,-546.01938188,0.00010959,2]
[394544456,1763682638623,-940.37982862,0.00010959,2]
[394544457,1763682638633,-940.37982862,0.00010959,2]
[394544458,1763682638642,-940.37982862,0.00010959,2]
[394544459,1763682638651,-940.37982862,0.00010959,2]
[394544460,1763682638661,-940.37982862,0.00010959,2]
[394544461,1763682638670,-940.37982862,0.00010959,2]
[394544462,1763682638680,-940.37982862,0.00010959,2]
[394544463,1763682638690,-940.37982862,0.00010959,2]
[394544464,1763682638700,-940.37982862,0.00010959,2]
[394544465,1763682638710,-940.37982862,0.00010959,2]
[394544466,1763682638720,-1106.90542326,0.00010959,2]
[394544467,1763682638730,-1106.90542326,0.00010959,2]
[394544468,1763682638740,-1106.90542326,0.00010959,2]
[394544469,1763682638749,-1106.90542326,0.00010959,2]
[394544470,1763682638759,-420.0,0.0001104,2]
[394544471,1763682638769,-329.0,0.00011041,2]
[394544472,1763682638779,-1057.56771256,0.00011121,2]
[394544473,1763682638789,-1000.0,0.00011121,2]
[394544474,1763682638798,-989.0,0.0001117,2]
[394544475,1763682638808,-630.0,0.0001117,2]
[394544476,1763682638823,-2151.0,0.0001117,2]
[394544477,1763682638843,-10236.99151559,0.00011591,2]
[394544478,1763682638855,-409.37227151,0.00011772,2]
[394544479,1763682638866,-720.0,0.00011841,2]
[394544480,1763682638876,-294.58804773,0.00012037,2]
[394544481,1763682638887,-151.0,0.000123,2]
[394544482,1763682638897,-353.0361107,0.00012437,2]
[394544483,1763682638907,-151.0,0.000126,2]
[394544484,1763682638917,-2958.0201062,0.00012742,2]
[394544485,1763682638927,-151.0,0.000129,2]
[394544486,1763682638937,-24942.4500861,0.000129,2]
[394544487,1763682638947,-4775.83344315,0.000129,2]
[394544488,1763682638958,-864.0,0.00013025,2]
[394544489,1763682638968,-151.0,0.000132,2]
[394544490,1763682638978,-151.0,0.000134,2]
[394544491,1763682638989,-151.0,0.000134,2]
[394544492,1763682638999,-4088.04207117,0.00013409,2]
[394544493,1763682639009,-287.41009856,0.0001351,2]
[394544494,1763682639019,-151.0,0.000136,2]
[394544495,1763682639030,-151.0,0.000136,2]
[394544496,1763682639040,-151.0,0.000136,2]
[394544497,1763682639049,-151.0,0.00013698,2]
[394544498,1763682639060,-151.0,0.00013698,2]
[394544499,1763682639070,-151.0,0.00013698,2]
[394544500,1763682639080,-151.0,0.00013698,2]
[394544501,1763682639090,-151.0,0.00013698,2]
[394544502,1763682639100,-151.0,0.00013698,2]
[394544503,1763682639111,-151.0,0.00013698,2]
[394544504,1763682639121,-151.0,0.00013698,2]
[394544505,1763682639131,-151.0,0.00013698,2]
[394544506,1763682639140,-151.0,0.00013698,2]
[394544507,1763682639151,-160.213591,0.00013698,2]
[394544508,1763682639160,-500.0,0.00013698,2]
[394544509,1763682639170,-500.0,0.00013698,2]
[394544510,1763682639180,-500.0,0.00013698,2]
[394544511,1763682639190,-500.0,0.00013698,2]
[394544512,1763682639200,-500.0,0.00013698,2]
[394544513,1763682639209,-500.0,0.00013698,2]
[394544514,1763682639223,-500.0,0.00013698,2]
[394544515,1763682639232,-500.0,0.00013698,2]
[394544516,1763682639242,-500.0,0.00013698,2]
[394544517,1763682639253,-500.0,0.00013698,2]
[394544518,1763682639263,-500.0,0.00013698,2]
[394544519,1763682639273,-500.0,0.00013698,2]
[394544520,1763682639283,-500.0,0.00013698,2]
[394544521,1763682639293,-500.0,0.00013698,2]
[394544522,1763682639303,-152.38194453,0.00013698,2]
[394544523,1763682639313,-151.0,0.00013698,2]
[394544524,1763682639323,-151.0,0.00013698,2]
[394544525,1763682639333,-151.0,0.00013698,2]
[394544526,1763682639344,-9615.01,0.00013698,2]
[394544527,1763682639354,-9615.01,0.00013698,2]
[394544528,1763682639364,-9615.01,0.00013698,2]
[394544529,1763682639374,-9615.01,0.00013698,2]
[394544530,1763682639385,-9615.01,0.00013698,2]
[394544531,1763682639395,-9615.01,0.00013698,2]
[394544532,1763682639405,-9615.01,0.00013698,2]
[394544533,1763682639416,-9615.01,0.00013698,2]
[394544534,1763682639426,-9615.01,0.00013698,2]
[394544535,1763682639435,-9615.01,0.00013698,2]
[394544536,1763682639450,-9615.01,0.00013698,2]
[394544537,1763682639461,-9615.01,0.00013698,2]
[394544538,1763682639472,-9615.01,0.00013698,2]
[394544539,1763682639483,-9615.01,0.00013698,2]
[394544540,1763682639493,-9615.01,0.00013698,2]
[394544541,1763682639503,-9615.01,0.00013698,2]
[394544542,1763682639513,-9615.01,0.00013698,2]
[394544543,1763682639524,-9615.01,0.00013698,2]
[394544544,1763682639535,-9615.01,0.00013698,2]
[394544545,1763682639545,-9615.01,0.00013698,2]